Cogmind - Beta 17 @@@ ROGUE MODE // 2026.07.27 @ 17:46:44 Player: kite Result: Self-destructed Performance ------------- Evolutions (6) 3000 Regions Visited (26) 5200 Robots Destroyed (277) 1385 Value Destroyed (11101) 11101 Prototype IDs (218) 4360 Alien Tech Used (0) 0 Bonus (7959) 7959 TOTAL SCORE: 33005 Bonus ------- High Alert Combat Kills 1279 Follower Combat Kills 2314 Network Hubs Disabled 200 Met Data Miner 300 Used Data Conduit 3000 Met Imprinter 300 Was Imprinted 300 Built Enhanced Grunts 300 A7 Reached Mainframe 300 Met R17 at Cetus 500 Friendly Fire -834 Cogmind --------- Core Integrity 566/1150 Matter 71/300 Energy 350/350 System Corruption 17% Temperature Cool (0) Movement Rolling (335) Ox17 Location -4/Armory Parts ------- > --- POWER (2) -------- Quantum Reactor > --- PROPULSION (8) --- Biometal Heavy Treads Centrium Leg Centrium Leg Wheel > --- UTILITY (5) ------ Cargo Storage Unit Advanced Signal Interpreter Improved Transmission Jammer Improved Dynamic Insulation System > --- WEAPON (4) ------- Railgun Molecular Scythe > --- INVENTORY (30) --- Improved Treads Improved Treads Wheel Structural Scanner Advanced Sensor Array Experimental Melee Analysis Suite Microactuators Improved Actuator Array Improved Actuator Array Transmission Jammer Centrium Medium Armor Plating Centrium Medium Armor Plating Graphene Brace EM Shield Improved Hacking Suite Improved Hacking Suite Improved Hacking Suite Improved System Shield Drone Bay (2/2) Advanced Drone Bay (2/2) Improved Proton Missile Launcher Advanced Datajack Remote Datajack Improved Plasma Cutter CR-A16's Pointy Stick Peak State ------------ > --- POWER ------------ Light Antimatter Reactor Light Antimatter Reactor > --- PROPULSION ------- Centrium Heavy Treads Centrium Heavy Treads Centrium Heavy Treads Centrium Heavy Treads > --- UTILITY ---------- Cargo Storage Unit Advanced Sensor Array Advanced Signal Interpreter Centrium Medium Armor Plating > --- WEAPON ----------- Shock Maul Shock Maul Power Sword Molecular Scythe > --- INVENTORY -------- Light Antimatter Reactor Improved Fusion Compressor Improved Melee Analysis Suite Experimental Melee Analysis Suite Microactuators Improved Actuator Array Improved Actuator Array Transmission Jammer Improved Power Shielding Centrium Medium Armor Plating Centrium Medium Armor Plating Medium Insulated Plating Medium Insulated Plating Improved Hacking Suite Improved Hacking Suite Improved Hacking Suite Improved Hacking Suite Improved Hacking Suite Improved System Shield Z-Drone Bay Advanced Drone Bay Improved Proton Missile Launcher Advanced Datajack Improved Plasma Cutter Makeshift Spear Makeshift Spear CR-A16's Pointy Stick [Rating: 147] Favorites ----------- Power Antimatter Reactor Engine F-cell Engine Power Core Light Nuclear Core Reactor Antimatter Reactor Propulsion Heavy Treads Treads Heavy Treads Leg Improved Titanium Leg Wheel Armored Huge Wheel Utility Cargo Storage Unit Device Improved Sensor Array Storage Cargo Storage Unit Processor Improved Signal Interpreter Hackware System Shield Protection Active Cooling Armor Weapon Cooled Plasma Cannon Energy Gun Small Laser Energy Cannon Cooled Plasma Cannon Ballistic Gun Enhanced Autogun Ballistic Cannon Light Cannon Launcher Improved Proton Missile Launcher Special Weapon Improved Plasma Cutter Impact Weapon Shock Maul Slashing Weapon Axe Piercing Weapon Makeshift Spear Special Melee Weapon Improved Datajack Build | -11 -10 -10 -10 -9 -8 -7 -7 -7 -7 -6 -6 -6 -6 -6 -6 -6 -5 -5 -5 -5 -5 -5 -4 -4 -4 -4 ------- Run | Yrd Mat Min Exi Min Mat Fac Low Low Dat Pro Fac Was Fac Low Low Zio Pro Fac Ext Cet Arc Hub Fac Was Fac Arm Slots Evolved 12 | . . . . . 4 2 . . . . 2 . . . . . . 2 . . . . 2 . . . Power 1 | . . . . . . . . . . . 1 . . . . . . . . . . . . . . . Propulsion 6 | . . . . . 2 . . . . . . . . . . . . 2 . . . . 2 . . . Utility 3 | . . . . . 1 1 . . . . 1 . . . . . . . . . . . . . . . Weapon 2 | . . . . . 1 1 . . . . . . . . . . . . . . . . . . . . Parts Attached 225 | 7 8 3 . 3 25 39 4 3 8 7 20 7 11 4 1 4 2 2 9 14 10 5 11 3 4 11 Power 28 | 1 . 1 . 1 3 4 . . 1 3 2 3 1 . . . . . 1 3 . . 2 . 1 1 Engine 12 | 1 . . . 1 3 3 . . 1 1 2 . . . . . . . . . . . . . . . Core 5 | . . 1 . . . 1 . . . 2 . . . . . . . . 1 . . . . . . . Reactor 11 | . . . . . . . . . . . . 3 1 . . . . . . 3 . . 2 . 1 1 Propulsion 62 | 2 . . . 2 8 9 2 . 3 1 5 3 . 2 1 2 2 1 2 5 1 2 1 . 1 7 Treads 40 | 2 . . . . 8 2 . . 2 . 2 3 . 2 1 2 2 1 2 5 1 2 1 . 1 1 Leg 13 | . . . . 2 . 5 1 . 1 1 1 . . . . . . . . . . . . . . 2 Wheel 9 | . . . . . . 2 1 . . . 2 . . . . . . . . . . . . . . 4 Hover . | . . . . . . . . . . . . . . . . . . . . . . . . . . . Flight . | . . . . . . . . . . . . . . . . . . . . . . . . . . . Utility 76 | 1 4 . . . 6 19 1 2 1 . 6 1 3 . . 1 . . 5 3 8 3 6 2 2 2 Device 33 | . 2 . . . 1 5 1 1 . . 1 1 1 . . 1 . . 4 . 7 2 2 1 2 1 Storage 6 | 1 1 . . . . 1 . . . . 2 . 1 . . . . . . . . . . . . . Processor 14 | . 1 . . . 2 5 . . . . 2 . . . . . . . . . . 1 2 . . 1 Hackware 3 | . . . . . 1 1 . . . . . . 1 . . . . . . . . . . . . . Protection 20 | . . . . . 2 7 . 1 1 . 1 . . . . . . . 1 3 1 . 2 1 . . Artifact . | . . . . . . . . . . . . . . . . . . . . . . . . . . . Weapon 59 | 3 4 2 . . 8 7 1 1 3 3 7 . 7 2 . 1 . 1 1 3 1 . 2 1 . 1 Energy Gun 7 | 3 1 . . . . . 1 . . 2 . . . . . . . . . . . . . . . . Energy Cannon 13 | . 1 . . . . 2 . 1 . . 6 . 3 . . . . . . . . . . . . . Ballistic Gun 5 | . . . . . 3 . . . . 1 . . . . . . . . . . . . . . . 1 Ballistic Cannon 3 | . . 2 . . 1 . . . . . . . . . . . . . . . . . . . . . Launcher 8 | . 1 . . . . 2 . . 2 . . . 1 2 . . . . . . . . . . . . Special Weapon 3 | . . . . . . . . . . . 1 . . . . . . . 1 1 . . . . . . Impact Weapon 5 | . . . . . 2 . . . . . . . 2 . . . . . . 1 . . . . . . Slashing Weapon 10 | . 1 . . . 1 3 . . 1 . . . 1 . . . . . . 1 1 . . 1 . . Piercing Weapon 4 | . . . . . 1 . . . . . . . . . . 1 . . . . . . 2 . . . Special Melee Weapon 1 | . . . . . . . . . . . . . . . . . . 1 . . . . . . . . Unidentified Prototypes 9 | . . . . . 1 5 . . . . 1 . . . . 1 . . 1 . . . . . . . Corrupted Parts 13 | . . . . . . 3 . . 1 . . . . . . 2 2 . . 2 1 2 . . . . System Corruption 104 | . . . . . . 30 . . 10 . . . . . . 9 19 . . 18 10 8 . . . . Parts Lost 70 | . . 1 . 1 5 18 . . 9 3 1 . . 1 . . . . 5 2 . 9 2 . 10 3 Power 12 | . . . . 1 1 1 . . 2 1 . . . . . . . . 2 1 . . . . 3 . Propulsion 23 | . . . . . 2 6 . . 3 1 1 . . 1 . . . . . 1 . 3 . . 4 1 Utility 11 | . . . . . 1 4 . . 1 . . . . . . . . . 1 . . 3 1 . . . Weapon 24 | . . 1 . . 1 7 . . 3 1 . . . . . . . . 2 . . 3 1 . 3 2 Highest Loss Streak 11 | . . 1 . 1 2 11 . . 9 3 1 . . 1 . . . . 3 2 . 6 2 . 9 2 To Critical Strikes 3 | . . . . . . 1 . . . 1 . . . . . . . . . 1 . . . . . . Average Backups 20 | 1 10 14 15 14 13 13 11 12 8 10 14 13 13 25 26 27 27 27 27 25 25 24 25 29 28 24 Power . | . 1 1 1 1 . . 1 1 . . . . 1 1 1 1 1 1 . 1 1 . 1 2 . . Propulsion 4 | 1 3 5 6 4 3 4 2 3 1 . 1 2 3 5 6 5 6 5 4 4 3 3 . 1 2 1 Utility 6 | . 1 2 2 2 3 5 4 5 5 8 7 2 2 5 6 7 6 6 7 10 12 14 18 20 19 17 Weapon 7 | . 3 4 5 5 4 3 4 3 1 1 4 7 7 13 12 12 12 12 11 6 5 4 3 4 4 2 Tool/Special . | . . . . . . . . . . . . . . . . . . . . . . . . . . . Unused Backups 81 | . . 2 . 2 12 8 2 . . . 8 6 2 2 3 . 4 . 3 3 7 . 1 . 5 11 Power 10 | . . . . . . 1 2 . . . . 1 . 1 . . . . . . 4 . . . 1 . Propulsion 15 | . . 1 . 2 2 3 . . . . 1 2 . . . . 1 . . 2 . . . . . 1 Utility 38 | . . 1 . . 5 3 . . . . 7 . 1 1 1 . 2 . . 1 3 . 1 . 4 8 Weapon 14 | . . . . . 3 1 . . . . . 3 1 . 2 . 1 . 3 . . . . . . . Tool/Special 4 | . . . . . 2 . . . . . . . . . . . . . . . . . . . . 2 Average Slot Usage (%) 78 | . 95 100 100 99 98 94 72 90 80 83 78 73 70 68 73 69 72 75 75 75 66 65 68 73 72 66 Engine 2 | . 14 6 . 4 8 4 7 7 2 . 5 1 . . . . . . . . . . . . . . Core 1 | . . 7 14 9 . 2 . . . 5 5 1 . . . . . . . 4 . . . . . . Reactor 6 | . . . . . . . . . . . . 8 13 13 13 12 13 11 10 5 11 4 8 10 9 3 Treads 18 | . 28 28 28 4 35 18 . . 6 7 5 11 13 15 20 20 19 28 28 17 17 16 21 21 20 5 Leg 1 | . . . . 23 . 3 7 12 9 1 4 . . . . . . . . . . . . . . 7 Wheel 1 | . . . . . . 3 14 9 1 5 8 1 . . . . . . . . . . . . . 15 Device 4 | . 7 14 14 14 . 7 6 7 4 6 3 6 4 . . . . . . 14 5 4 5 5 7 3 Storage 6 | . 14 14 14 14 9 7 7 7 7 7 6 6 6 6 6 6 6 5 5 5 5 5 5 5 5 5 Processor 3 | . 2 . . . 4 6 15 15 15 15 3 . . . . . . . . . . 4 3 5 5 7 Protection 3 | . . . . . 2 5 . . 2 . 5 6 5 6 6 5 6 5 4 1 1 4 3 4 2 4 Energy Gun 1 | . 24 . . . . . 3 1 . 12 4 . . . . . . . . . . . . . . . Energy Cannon 12 | . 1 . . . . . 7 13 10 8 19 26 24 25 25 22 25 20 21 3 . . . . . . Ballistic Cannon 2 | . . 26 28 28 4 . . . . . . . . . . . . . . . . . . . . . Impact Weapon 1 | . . . . . 5 6 . . . . . . . . . . . . . 13 3 5 7 5 4 4 Slashing Weapon 4 | . 2 . . . 6 20 . 13 16 3 1 . . . . . . . . 1 15 13 9 10 9 1 Piercing Weapon 1 | . . . . . 6 1 . . . . . . . . . . . . . . 3 . 2 5 5 4 Peak Build Rating 147 | 6 11 12 12 13 30 55 49 58 59 56 85 98 103 104 98 98 101 107 112 141 142 139 147 142 143 116 Average Rating 79 | 4 8 11 12 12 25 37 46 55 45 49 76 95 99 101 97 94 100 105 105 111 128 121 140 138 136 99 On Entrance 70 | . 6 11 12 12 11 27 40 49 58 42 56 85 98 103 98 97 98 101 105 98 141 139 81 142 136 45 Avg Prop Armor Cover (%) 9 | . . . . . . 16 7 7 9 8 5 5 . . . . . . . . . 14 25 . . 18 Naked Turns . | . . . . . . . . . . . . . . . . . . . . . . . . . . . Heaviest Build 236 | 13 32 32 32 32 40 70 45 54 55 51 99 115 236 236 236 236 236 236 236 213 215 210 190 189 187 179 Greatest Support 320 | 40 40 40 40 40 80 80 44 44 40 28 54 140 140 140 112 118 130 173 190 240 240 240 320 320 320 64 Greatest Overweight (x) 6 | . . . . 1 . 2 1 1 2 2 3 3 1 2 2 2 2 1 1 1 . 1 2 . 6 6 Average Overweight (x) . | . . . . . . . . 1 1 1 2 . . 1 2 1 1 1 1 . . . . . . 3 Largest Inventory Capacity 30 | 8 15 15 15 15 15 15 15 15 15 15 15 15 30 30 30 30 30 30 30 30 30 30 30 30 30 30 Average Capacity 23 | 7 12 15 15 15 15 15 15 15 15 15 15 15 19 30 30 30 30 30 30 30 30 30 30 30 30 30 Most Carried 30 | 3 15 15 15 15 15 15 15 15 15 13 15 15 27 30 30 30 30 30 30 30 30 30 30 30 30 27 Average Carried 22 | 2 11 14 15 14 14 14 13 14 11 12 14 14 16 28 29 29 29 29 29 28 29 29 26 29 29 25 Final Capacity 30 | 8 15 15 15 15 15 15 15 15 15 15 15 15 30 30 30 30 30 30 30 30 30 30 30 30 30 30 Final Carried 30 | 3 15 15 15 15 15 13 15 15 10 13 15 15 27 29 29 30 30 30 27 30 30 24 30 30 29 26 Class Distribution -------------------- 33% | Hauler-Tank 21% | Mutant 14% | Hauler-Mutant 6% | Scavenger-Mutant 4% | Commander-Tank 3% | Scavenger-Tank 3% | Pyromaniac-Tank Dominant Class ---------------- Mutant | -10/Materials Mutant | -10/Mines Mutant | -10/Exiles Mutant | -9/Mines Scavenger-Mutant | -8/Materials Mutant | -7/Factory Mutant | -7/Lower Caves Mutant | -7/Lower Caves Mutant | -7/Data Miner Derelict-Skirmisher | -6/Proximity Caves Pyromaniac-Gunner | -6/Factory Pyromaniac-Tank | -6/Waste Scavenger-Tank | -6/Factory Hauler-Tank | -6/Lower Caves Hauler-Tank | -6/Lower Caves Hauler-Tank | -6/Zion Hauler-Tank | -5/Proximity Caves Hauler-Tank | -5/Factory Commander-Tank | -5/Extension Hauler-Mutant | -5/Cetus Hauler-Mutant | -5/Archives Hauler-Gladiator | -5/Hub_04(d) Hauler-Mutant | -4/Factory Hauler-Mutant | -4/Waste Hauler-Mutant | -4/Factory Hauler-Mutant | -4/Armory Resources | -11 -10 -10 -10 -9 -8 -7 -7 -7 -7 -6 -6 -6 -6 -6 -6 -6 -5 -5 -5 -5 -5 -5 -4 -4 -4 -4 ----------- Run | Yrd Mat Min Exi Min Mat Fac Low Low Dat Pro Fac Was Fac Low Low Zio Pro Fac Ext Cet Arc Hub Fac Was Fac Arm Matter Collected 6167 | 159 431 147 . 63 957 559 318 167 138 318 404 80 274 319 72 110 158 60 373 210 294 35 179 . 257 85 Remotely 185 | . 185 . . . . . . . . . . . . . . . . . . . . . . . . . Salvage Created 13749 | 62 502 232 . 66 1437 1137 454 172 159 136 1058 728 1365 1199 270 . 138 536 2429 277 321 222 297 . 474 78 Parts 529 | . 26 10 . 19 83 61 7 3 . 5 31 10 54 38 5 . 9 15 75 12 29 9 13 . 15 . Haulers Intercepted 14 | . 2 . . . 2 2 . . . . 3 . 1 . . . . . 4 . . . . . . . Recyclers Shooed 6 | 1 . . . 1 . 2 . . . . . . 1 . . . . . . . . . . . 1 . Parts Field Recycled . | . . . . . . . . . . . . . . . . . . . . . . . . . . . Retrieved Matter . | . . . . . . . . . . . . . . . . . . . . . . . . . . . Parts Self-Destructed 46 | . . . . . . . 4 3 . 5 . . . 15 6 . 13 . . . . . . . . . Prevented 24 | . . . . . . . . 2 . 3 . . . 9 1 . 9 . . . . . . . . . Parts Restored . | . . . . . . . . . . . . . . . . . . . . . . . . . . . Kills | -11 -10 -10 -10 -9 -8 -7 -7 -7 -7 -6 -6 -6 -6 -6 -6 -6 -5 -5 -5 -5 -5 -5 -4 -4 -4 -4 ------- Run | Yrd Mat Min Exi Min Mat Fac Low Low Dat Pro Fac Was Fac Low Low Zio Pro Fac Ext Cet Arc Hub Fac Was Fac Arm Combat Hostiles Destroyed 193 | . 8 5 . 10 27 17 1 3 4 4 6 . 23 20 5 . 3 7 32 3 . 5 3 . 7 . Melee 30 | . . . . . 10 9 . . 3 . . . . . . . . . . . . 1 2 . 5 . Guns 10 | . 5 1 . . 3 . . . . 1 . . . . . . . . . . . . . . . . Cannons 91 | . . 4 . 10 6 . 1 3 . 3 5 . 13 9 3 . 3 6 25 . . . . . . . AOE 35 | . 3 . . . 4 8 . . 1 . . . 6 6 1 . . . 2 . . 4 . . . . Classes Destroyed 20 | 1 5 . . . 5 6 . . . . . . . 1 . . . . 1 . . . . . . 1 Worker 17 | . 2 . . . 7 2 . . . . . . 1 . . . . 1 . . . . 1 . 3 . Builder 12 | . . . . . 2 4 . . . . 1 . 3 . . . . . 1 . . . . . 1 . Tunneler 6 | . . . . . 2 4 . . . . . . . . . . . . . . . . . . . . Hauler 14 | . 2 . . . 2 2 . . . . 3 . 1 . . . . . 4 . . . . . . . Recycler 11 | 1 1 1 . . 3 1 . . . . 3 . 1 . . . . . . . . . . . . . Mechanic 3 | . . . . . . 2 . . . . . . . . . . . 1 . . . . . . . . Operator 11 | . . . . . 1 . . . . . . . 1 . . . . . . . 9 . . . . . Watcher 8 | . 1 . . . 2 . . . . . 1 . 1 . . . . . 1 1 . . 1 . . . Swarmer 35 | . 3 . . 10 7 2 . . . 3 . . 3 3 2 . 1 . 1 . . . . . . . Grunt 77 | . 5 5 . . 13 3 . 2 . . 5 . 12 9 3 . . 4 12 . . 1 . . 3 . Brawler 5 | . . . . . 1 1 . 1 . . . . . . . . . . 2 . . . . . . . Protector 1 | . . . . . . 1 . . . . . . . . . . . . . . . . . . . . Sentry 25 | . . . . . 6 2 . . . 1 . . 2 . . . . 2 9 . . 1 2 . . . Demolisher 3 | . . . . . . . . . . . . . . . . . . . 3 . . . . . . . Specialist 3 | . . . . . . 2 . . . . . . . . . . . . 1 . . . . . . . Hunter 11 | . . . . . . 2 . . . . . . 4 1 . . . 1 . . . 1 . . 2 . Programmer 12 | . . . . . . 3 1 . . . 1 . 2 . . . 2 . 1 . . . . . 2 . Heavy 2 | . . . . . . 1 . . . . . . . . . . . . . . . . 1 . . . Cetus Guard 3 | . . . . . . . . . . . . . . . . . . . . 3 . . . . . . Enhanced Grunt 4 | . . . . . . . . . 4 . . . . . . . . . . . . . . . . . Lightning 2 | . . . . . . . . . . . . . . . . . . . . . . 2 . . . . Decomposer 1 | . . . . . . . 1 . . . . . . . . . . . . . . . . . . . Packrat 5 | . . . . . . . 5 . . . . . . . . . . . . . . . . . . . Thug 8 | . . . . . . . . . . . . . . 5 . . . . 3 . . . . . . . Savage 2 | . . . . . . . . . . . . . . 1 . . . . 1 . . . . . . . Fireman 1 | . . . . . . . . . . . . . . . . . . . . . . . . . . 1 Mutant 1 | . . . . . . . . . . . . . . 1 . . . . . . . . . . . . Best Kill Streak 14 | 1 5 2 . 4 9 14 1 2 2 3 3 . 10 4 3 . 1 5 12 4 5 4 2 . 3 . Combat Bots Only 12 | . 3 2 . 4 5 8 1 2 2 3 3 . 8 4 3 . 1 4 12 3 . 4 1 . 2 . Max Kills in Single Turn 5 | 1 4 1 . 1 3 5 1 1 1 1 2 . 4 1 1 . 1 2 2 1 1 4 1 . 1 1 Gunslinging . | . . . . . . . . . . . . . . . . . . . . . . . . . . . Exploded 4 | . 3 . . . 2 3 . . 1 . . . 4 1 1 . . . 2 . . 4 . . . . Melee 1 | . . . . . 1 1 . . 1 . . . . . . . . . . . . 1 1 . 1 . Uniques/NPCs Destroyed . | . . . . . . . . . . . . . . . . . . . . . . . . . . . Combat | -11 -10 -10 -10 -9 -8 -7 -7 -7 -7 -6 -6 -6 -6 -6 -6 -6 -5 -5 -5 -5 -5 -5 -4 -4 -4 -4 -------- Run | Yrd Mat Min Exi Min Mat Fac Low Low Dat Pro Fac Was Fac Low Low Zio Pro Fac Ext Cet Arc Hub Fac Was Fac Arm Hostile Shots Fired 1457 | . 38 17 . 47 98 300 . 5 44 42 29 . 89 70 14 . 6 15 108 33 4 166 24 . 212 96 Missed 426 | . 11 5 . 13 28 96 . 1 8 9 9 . 28 21 6 . 1 5 29 11 1 41 11 . 62 30 Hits 1031 | . 27 12 . 34 70 204 . 4 36 33 20 . 61 49 8 . 5 10 79 22 3 125 13 . 150 66 Melee 17 | . . . . . . 9 . . . . . . . . . . . . 2 . . . . . . 6 Projectile 1014 | . 27 12 . 34 70 195 . 4 36 33 20 . 61 49 8 . 5 10 77 22 3 125 13 . 150 60 AOE 12 | . . . . . . . . . . . . . 2 . . . . . 9 . . . . . . 1 Critical Strikes 56 | . 2 . . 1 4 13 . . . 1 1 . 1 . . . 1 . 3 4 . 13 3 . 4 5 Part Disruptions 4 | . . . . . . 1 . . 2 . . . . . . . . . . . . 1 . . . . Damage Taken 22714 | . 333 161 . 270 1130 3288 . 59 1611 410 379 . 1187 894 137 . 361 200 2192 226 61 4326 618 298 3002 1571 Core 2158 | . 78 35 . 36 96 282 . 15 252 96 19 . 31 37 . . . . 41 18 . 538 77 51 252 204 Absorbed by Shields 571 | . . . . . . . . . 47 . . . . . . . . . 222 237 65 . . . . . Reduced by Siege Mode 60 | . . . . . . . . . . . . . . 26 . . . . 34 . . . . . . . Ignored by Resistances 161 | . . . . . . . . . . . . . . . . . . . . 161 . . . . . . Regen/Repaired (Parts) 272 | . . . . . . . . . . . . . 95 . . . . . . . . . 177 . . . Core Remaining (%) 59 | 100 . . . 40 82 . . . . 7 . . . . . . 89 . . . . 40 . . . . Volleys Fired 371 | 5 41 22 . 22 31 10 12 5 6 18 31 4 35 45 9 . 3 12 51 7 . 1 . . . 1 Largest 4 | 2 2 2 . 2 3 2 2 2 1 4 4 4 4 4 4 . 4 4 4 1 . 1 . . . 1 Hottest 320 | 80 125 125 . 60 120 75 90 115 105 238 320 230 240 240 240 . 240 240 240 43 . 50 . . . 35 Shots Fired 982 | 10 79 43 1 44 83 16 15 18 5 42 89 16 128 109 27 . 12 43 193 8 . 1 . . . . Gun 179 | 10 76 6 . . 33 . 2 . . 24 28 . . . . . . . . . . . . . . . Cannon 738 | . 2 37 1 44 45 . 13 18 1 18 60 16 125 86 24 . 12 43 192 1 . . . . . . Launcher 62 | . 1 . . . 5 16 . . 4 . . . 3 23 3 . . . 1 5 . 1 . . . . Special 3 | . . . . . . . . . . . 1 . . . . . . . . 2 . . . . . . Kinetic 158 | . . 30 1 44 75 . . . . 6 2 . . . . . . . . . . . . . . . Thermal 757 | 10 78 13 . . 3 . 13 18 1 36 86 16 125 86 24 . 12 43 192 1 . . . . . . Explosive 25 | . 1 . . . 5 10 . . 4 . . . 3 . . . . . 1 . . 1 . . . . Electromagnetic 39 | . . . . . . 6 2 . . . . . . 23 3 . . . . 5 . . . . . . Robot Hit Streak 30 | 7 10 5 . 5 8 5 5 6 3 7 13 11 13 12 8 . 5 9 30 6 . 7 . . . . Robot Miss Streak 5 | 1 5 2 . 5 3 2 2 1 3 4 2 1 5 3 3 . . 3 4 . . 1 . . . . Penetration Max . | . . . . . . . . . . . . . . . . . . . . . . . . . . . Secondary Targets . | . . . . . . . . . . . . . . . . . . . . . . . . . . . Shots Hit Robots 843 | 8 58 25 . 18 93 81 9 8 17 10 57 14 65 63 13 . 7 26 170 9 10 24 16 . 39 3 Core Hits 511 | 2 25 10 . 10 47 75 7 3 29 5 24 3 60 30 5 . 4 13 78 8 3 46 8 . 14 2 Critical Kills 13 | . . . . . 1 . . . . . . . 4 2 . . . . 5 . . . . . 1 . Critical Parts Destroyed 11 | . . . . . 3 1 . . . . . . . . . . . . . . . 2 . . 4 1 Critical Strikes 48 | . 1 1 . 1 9 5 . . 1 2 2 . 4 2 . . 1 . 5 1 . 5 . . 6 2 Burn 6 | . 1 1 . . . . . . . 2 2 . . . . . . . . . . . . . . . Meltdown 11 | . . . . . . . . . . . . . 4 2 . . . . 5 . . . . . . . Blast 4 | . . . . 1 3 . . . . . . . . . . . . . . . . . . . . . Smash 13 | . . . . . 4 1 . . . . . . . . . . . . . . . 2 . . 5 1 Sever 12 | . . . . . 1 4 . . 1 . . . . . . . . . . 1 . 3 . . 1 1 Impale 2 | . . . . . 1 . . . . . . . . . . . 1 . . . . . . . . . Melee Attacks 466 | . 3 . . . 81 100 . . 23 . 4 . 9 . . . 4 3 52 7 14 39 26 19 69 13 Impact 118 | . . . . . 37 13 . . . . . . 7 . . . . 3 . 2 . 22 7 . 18 9 Slashing 245 | . 3 . . . 17 83 . . 23 . 4 . 2 . . . . . . 5 14 17 16 19 38 4 Piercing 51 | . . . . . 27 4 . . . . . . . . . . 4 . . . . . 3 . 13 . Sneak Attacks 106 | . . . . . 13 16 . . 1 . 1 . . . . . . . 52 . 10 4 3 . 5 1 Combat Hostiles . | . . . . . . . . . . . . . . . . . . . . . . . . . . . Follow-up Attacks 83 | . . . . . 14 26 . . 4 . . . . . . . . . . 2 1 11 5 . 20 . Damage Inflicted 35596 | 91 844 468 . 317 3864 4828 290 227 1484 239 1517 430 3126 2864 546 . 260 1087 5643 929 1395 2378 690 . 1893 186 Guns 1747 | 91 686 76 . . 361 . 25 . . 100 408 . . . . . . . . . . . . . . . Cannons 13707 | . 17 391 . 317 371 . 265 227 . 139 1019 430 2244 1747 475 . 151 953 4931 30 . . . . . . Explosions 8778 | . 95 . . . 1021 2139 . . 973 . . . 841 1117 71 . . 134 658 622 . 1107 . . . . Melee 11225 | . 46 . . . 2111 2684 . . 511 . 90 . . . . . 109 . . 277 1395 1271 690 . 1855 186 Ramming 139 | . . 1 . . . 5 . . . . . . 41 . . . . . 54 . . . . . 38 . Kinetic 1412 | . . 302 . 317 698 . . . . 40 55 . . . . . . . . . . . . . . . Thermal 14557 | 91 703 165 . . 34 . 265 227 . 199 1372 430 2244 1980 475 . 151 1087 4931 203 . . . . . . Explosive 6401 | . 95 . . . 1021 1706 . . 973 . . . 841 . . . . . 658 . . 1107 . . . . Electromagnetic 1862 | . . . . . . 433 25 . . . . . . 884 71 . . . . 449 . . . . . . Impact 3162 | . . . . . 1360 282 . . . . . . . . . . . . . 85 . 634 34 . 672 95 Slashing 7094 | . 46 . . . 345 2310 . . 511 . 90 . . . . . . . . 192 1395 637 589 . 888 91 Piercing 969 | . . . . . 406 92 . . . . . . . . . . 109 . . . . . 67 . 295 . Highest Corruption 55 | . 1 1 1 1 . 45 45 45 55 55 . . 1 1 1 9 19 . 1 20 20 40 . 9 11 17 Average Corruption 15 | . 1 1 1 1 . 11 45 45 53 55 . . 1 1 1 1 18 . 1 15 10 17 . 6 9 11 Corruption Purged 30 | . . . . . . . . . . . . . . . . . . . . . 30 . . . . . Corruption Blocked . | . . . . . . . . . . . . . . . . . . . . . . . . . . . Effects 392 | . 5 5 2 2 . 48 55 59 26 45 . . . 9 7 1 51 . . 20 14 5 . 3 24 11 Message Errors 94 | . 4 2 . . . 13 14 16 2 9 . . . 5 . 1 10 . . 2 4 . . 1 8 3 Matter Fused 84 | . . . . . . 13 8 16 8 10 . . . . 3 . 12 . . 4 1 2 . . 4 3 Heat Flow Errors 43 | . . 1 . . . 4 5 4 5 5 . . . . . . 7 . . 4 2 2 . . 2 2 Energy Discharges 45 | . . . . . . 7 5 5 5 7 . . . 1 2 . 8 . . 1 1 . . . 3 . Parts Rejected 5 | . . . . . . 1 1 . 1 . . . . 1 . . . . . . . 1 . . . . Parts Fused 8 | . . . . . . 1 1 . . 2 . . . . . . 2 . . . 1 . . . 1 . Data Loss (minor) 56 | . . 2 . 1 . 3 15 9 3 3 . . . . 2 . 6 . . 5 3 . . . 3 1 Data Loss (major) 19 | . 1 . . . . 4 1 1 1 1 . . . . . . 3 . . 1 1 . . 2 3 . Misfires 18 | . . . 1 . . . 2 8 . 4 . . . 1 . . 1 . . 1 . . . . . . Alerts 9 | . . . 1 1 . . 2 . . 1 . . . . . . 1 . . 2 . . . . . 1 Misdirections 3 | . . . . . . 2 . . . . . . . . . . . . . . 1 . . . . . Weapon Failures 8 | . . . . . . . 1 . 1 3 . . . 1 . . 1 . . . . . . . . 1 Overload Shots 8 | . . . . . . . . . 1 2 4 . 1 . . . . . . . . . . . . . Effects 2 | . . . . . . . . . . . 2 . . . . . . . . . . . . . . . Energy Bleed 1 | . . . . . . . . . . . 1 . . . . . . . . . . . . . . . Heat Surge 1 | . . . . . . . . . . . 1 . . . . . . . . . . . . . . . Overflow Damage 2323 | . . 6 . . 452 271 55 . . . 81 . 20 36 13 . . 14 40 7 610 82 10 . 531 95 Projectiles 199 | . . 6 . . . . 55 . . . 21 . 20 19 13 . . . 40 7 . . . . 18 . Explosions 128 | . . . . . 87 10 . . . . . . . 17 . . . 14 . . . . . . . . Melee 1996 | . . . . . 365 261 . . . . 60 . . . . . . . . . 610 82 10 . 513 95 Knockbacks 25 | . . 4 . 3 8 1 . . . . . . 1 . . . . . 1 . . 3 . . 3 1 Impact 15 | . . . . . 6 1 . . . . . . 1 . . . . . 1 . . 3 . . 2 1 Kinetic 9 | . . 4 . 3 2 . . . . . . . . . . . . . . . . . . . . . Secondary 1 | . . . . . . . . . . . . . . . . . . . . . . . . . 1 . Self-Inflicted Damage 587 | . . . . . 160 . . . . . . . 128 18 . . . . 118 . . 163 . . . . Shots 23 | . . . . . 4 . . . . . . . 6 1 . . . . 6 . . 6 . . . . Rammed 11 | . . 1 . . . . . . . . . . 3 . . . . . 3 . . . . . 4 . Targets Rammed 13 | . . 1 . . . 2 . . . . . . 3 . . . . . 3 . . . . . 4 . Kicked 2 | . . . . . . 2 . . . . . . . . . . . . . . . . . . . . Crushed . | . . . . . . . . . . . . . . . . . . . . . . . . . . . Highest Temperature 390 | 90 359 140 . . 128 269 224 241 221 390 180 . 42 36 6 . 222 28 270 290 233 257 . . 288 248 Average Temperature 75 | 47 94 45 . . 42 77 83 59 96 126 65 . 12 12 2 . 76 10 55 109 110 114 . . 108 98 Received Heat Transfer 3461 | . 195 93 . . 423 378 . 36 . 36 198 . 270 300 . . 36 54 498 28 . 306 9 . 405 196 Effects 5 | . 1 . . . . . . . . 2 . . . . . . . . . 1 . . . . . 1 Energy Bleed 2 | . 1 . . . . . . . . 1 . . . . . . . . . . . . . . . . Interference 3 | . . . . . . . . . . 1 . . . . . . . . . 1 . . . . . 1 Siege Activations 12 | . . . . . . . . . . . . 2 . 6 1 . . 1 2 . . . . . . . Total Turns 311 | . . . . . . . . . . . . 128 . 139 4 . . 8 32 . . . . . . . Longest Duration 119 | . . . . . . . . . . . . 119 . 51 4 . . 8 24 . . . . . . . Martial Activations . | . . . . . . . . . . . . . . . . . . . . . . . . . . . Shielding Activations . | . . . . . . . . . . . . . . . . . . . . . . . . . . . Robots Disrupted 2 | . . . . . . 1 . . . . . . . . . . . . . . . 1 . . . . Combat Hostiles 1 | . . . . . . . . . . . . . . . . . . . . . . 1 . . . . Robots Corrupted 18 | . . . . . 7 1 . . . . . . . 3 . . . . . 3 . . 1 . 2 1 Combat Hostiles 13 | . . . . . 4 . . . . . . . . 3 . . . . . 3 . . 1 . 2 . Parts Fried 29 | . . . . . 9 5 . . . . . . . 3 . . . . . 3 . . 2 . 4 3 Impact Corruptions 36 | . . . . . 13 4 . . . . . . . . . . . . . . . 6 1 . 10 2 Robots Melted 18 | . . . . . . . . . . . 2 1 4 2 1 . . 1 7 . . . . . . . Combat Hostiles 15 | . . . . . . . . . . . 1 1 4 2 1 . . 1 5 . . . . . . . Parts Melted 87 | 1 4 2 . . . . 1 . . 1 9 2 14 15 6 . . 4 28 . . . . . . . Heat Transferred 20753 | 200 1678 444 . . 74 . 400 400 . 509 2627 700 3086 2297 596 . 161 1279 6184 118 . . . . . . Parts Sabotaged . | . . . . . . . . . . . . . . . . . . . . . . . . . . . Parts Stolen . | . . . . . . . . . . . . . . . . . . . . . . . . . . . Parts Stripped . | . . . . . . . . . . . . . . . . . . . . . . . . . . . Power Chain Reactions 3 | . . . . . . . . . . . . . . 2 . . . . . 1 . . . . . . Alert | -11 -10 -10 -10 -9 -8 -7 -7 -7 -7 -6 -6 -6 -6 -6 -6 -6 -5 -5 -5 -5 -5 -5 -4 -4 -4 -4 ------- Run | Yrd Mat Min Exi Min Mat Fac Low Low Dat Pro Fac Was Fac Low Low Zio Pro Fac Ext Cet Arc Hub Fac Was Fac Arm Maximum Alert Level 4 | . . . . . 1 1 . . . . . . 2 . . . . 2 4 3 2 3 1 . . . Low Security (%) 58 | 100 100 100 . 100 20 96 . . . . 100 100 56 . . . . 24 6 . 51 32 28 100 100 100 Level 1 27 | . . . . . 79 3 . . . . . . 40 . . . . 10 59 . 29 4 71 . . . Level 2 6 | . . . . . . . . . . . . . 3 . . . . 64 2 . 18 51 . . . . Level 3 5 | . . . . . . . . . . . . . . . . . . . 15 100 . 12 . . . . Level 4 1 | . . . . . . . . . . . . . . . . . . . 16 . . . . . . . Level 5 . | . . . . . . . . . . . . . . . . . . . . . . . . . . . High Security . | . . . . . . . . . . . . . . . . . . . . . . . . . . . Max Security . | . . . . . . . . . . . . . . . . . . . . . . . . . . . Peak Influence 1547 | 5 115 72 . 157 384 280 . . . . 61 1 413 . . . . 515 1547 927 499 747 303 63 73 60 Initial 856 | . . 12 . . 48 154 . . . . . . . . . . . 78 241 856 339 . 303 63 . . Average 215 | . 35 7 . 47 268 55 . . . . 12 . 199 . . . . 365 538 847 217 458 223 27 22 8 Influence Increases 9514 | 5 246 135 . 245 968 652 30 85 . 90 210 2 729 328 148 . 263 785 2373 303 250 1169 159 8 225 106 Destroy 0b10 Robot/C 4660 | . 160 100 . 200 540 320 20 60 . 80 120 . 460 280 120 . 140 240 1080 160 80 300 60 . 140 . Destroy 0b10 Robot/NC 460 | 5 30 5 . . 95 80 . . . . 40 . 40 . . . . 30 40 10 45 10 10 . 20 . Destroy Leader 868 | . 46 30 . 30 128 74 10 10 . 10 28 . 114 40 20 . 40 60 64 . . 102 32 . 30 . Allied During Kill 1711 | . . . . . . . . . . . . . . 8 8 . 83 83 1027 55 125 322 . . . . Successful Hack 100 | . 7 . . . 29 45 . . . . . . 12 . . . . . 7 . . . . . . . Disable Machine 585 | . . . . . 75 75 . . . . . . 30 . . . . 195 30 15 . 90 45 . 15 15 Anti-Garrison Action 200 | . . . . . . . . . . . . . . . . . . . . . . 200 . . . . Destroy Structure 660 | . 3 . . . 71 58 . . . . 7 2 73 . . . . 162 110 48 . 70 12 8 20 16 Partial Spotted 15 | . . . . . 15 . . . . . . . . . . . . . . . . . . . . . Lose Combat Pursuer 255 | . . . . 15 15 . . 15 . . 15 . . . . . . 15 15 15 . 75 . . . 75 Influence Decreases 9492 | 5 213 168 . 120 753 824 198 85 . 90 210 2 399 658 148 . 138 417 1336 984 1099 548 600 188 225 84 Entered New Map 2388 | . . 21 . . 77 186 63 . . . . . . 123 . . . 47 252 674 510 . 318 117 . . Time Decay 5794 | 5 213 137 . 110 636 488 135 85 . 70 210 2 399 525 108 . 138 270 604 270 589 238 262 71 182 47 Lost Part 483 | . . 10 . 10 40 150 . . . 20 . . . 10 . . . . 50 20 . 90 20 . 43 20 Lost Ally 827 | . . . . . . . . . . . . . . . 40 . . 100 430 20 . 220 . . . 17 Squads Dispatched 42 | . 1 . . . 3 6 . . . . 3 . 7 . . . . 4 3 . . 6 5 . 2 2 Investigation 9 | . . . . . . . . . . . 1 . 3 . . . . 1 . . . 1 2 . 1 . Extermination 8 | . . . . . . 2 . . . . 1 . 2 . . . . 1 . . . . . . 1 1 Reinforcement 18 | . 1 . . . 3 2 . . . . 1 . 2 . . . . 1 . . . 4 3 . . 1 Assault 6 | . . . . . . 2 . . . . . . . . . . . 1 3 . . . . . . . Garrison 1 | . . . . . . . . . . . . . . . . . . . . . . 1 . . . . Intercept . | . . . . . . . . . . . . . . . . . . . . . . . . . . . Searches Triggered . | . . . . . . . . . . . . . . . . . . . . . . . . . . . Construction Impeded 3 | . . . . . 2 1 . . . . . . . . . . . . . . . . . . . . Haulers Reinforced 4 | . . . . . . . . . . . 1 . 2 . . . . . . . . . 1 . . . Active Scanning Responses . | . . . . . . . . . . . . . . . . . . . . . . . . . . . Cargo Convoy Interrupts 1 | . . . . . . 1 . . . . . . . . . . . . . . . . . . . . Stealth | -11 -10 -10 -10 -9 -8 -7 -7 -7 -7 -6 -6 -6 -6 -6 -6 -6 -5 -5 -5 -5 -5 -5 -4 -4 -4 -4 --------- Run | Yrd Mat Min Exi Min Mat Fac Low Low Dat Pro Fac Was Fac Low Low Zio Pro Fac Ext Cet Arc Hub Fac Was Fac Arm Distress Signals 21 | . 2 . . . 2 2 . . . . . . 2 . . . . . 3 2 . 5 2 . . 1 Communications Jammed 45 | . . . . . . . . . . . . . 8 . . . . . . . . . 6 . 3 28 Distress Signals 42 | . . . . . . . . . . . . . 8 . . . . . . . . . 3 . 3 28 Times Spotted 360 | . 17 5 . 11 45 33 . 2 4 4 7 . 26 20 6 . 7 11 52 10 3 43 10 7 24 13 Peak Tracking Total 19 | . 4 2 . 4 8 8 . 2 4 3 3 . 8 4 3 . 4 4 14 5 2 19 3 4 12 13 Tactical Retreats 12 | . . . . 1 1 . . 1 . . 1 . . . . . . 1 1 1 . 1 . 2 . 2 Traps | -11 -10 -10 -10 -9 -8 -7 -7 -7 -7 -6 -6 -6 -6 -6 -6 -6 -5 -5 -5 -5 -5 -5 -4 -4 -4 -4 ------- Run | Yrd Mat Min Exi Min Mat Fac Low Low Dat Pro Fac Was Fac Low Low Zio Pro Fac Ext Cet Arc Hub Fac Was Fac Arm Traps Triggered 9 | . . . . . . 1 . . . . 1 . 2 . . . . . 3 . . . 1 . 1 . Indirectly . | . . . . . . . . . . . . . . . . . . . . . . . . . . . Trap Hack Attempts 8 | . . . . . . . . . . . . . . . . . . . 8 . . . . . . . Triggered . | . . . . . . . . . . . . . . . . . . . . . . . . . . . Disarmed . | . . . . . . . . . . . . . . . . . . . . . . . . . . . Reprogrammed 1 | . . . . . . . . . . . . . . . . . . . 1 . . . . . . . Reused . | . . . . . . . . . . . . . . . . . . . . . . . . . . . Traps Extracted . | . . . . . . . . . . . . . . . . . . . . . . . . . . . Installed . | . . . . . . . . . . . . . . . . . . . . . . . . . . . Triggered . | . . . . . . . . . . . . . . . . . . . . . . . . . . . Machines | -11 -10 -10 -10 -9 -8 -7 -7 -7 -7 -6 -6 -6 -6 -6 -6 -6 -5 -5 -5 -5 -5 -5 -4 -4 -4 -4 ---------- Run | Yrd Mat Min Exi Min Mat Fac Low Low Dat Pro Fac Was Fac Low Low Zio Pro Fac Ext Cet Arc Hub Fac Was Fac Arm Machines Disabled 40 | . . . . . 5 5 . . . . . . 2 . . . . 13 3 1 . 6 3 . 1 1 Max in Single Turn 3 | . . . . . 3 1 . . . . . . 1 . . . . 1 1 1 . 1 1 . 1 1 Garrison Access 2 | . . . . . . 1 . . . . . . . . . . . . . . . 1 . . . . Network Hub 1 | . . . . . . . . . . . . . . . . . . . . . . 1 . . . . Energy Cycler 1 | . . . . . . . . . . . . . . . . . . . . . . . . . . 1 Machines Repaired . | . . . . . . . . . . . . . . . . . . . . . . . . . . . Machines Dismantled 4 | . . . . . . . . . . . . . . . . . . . 2 1 . 1 . . . . Machines Sabotaged . | . . . . . . . . . . . . . . . . . . . . . . . . . . . Overloaded Fab Kills . | . . . . . . . . . . . . . . . . . . . . . . . . . . . Hacking | -11 -10 -10 -10 -9 -8 -7 -7 -7 -7 -6 -6 -6 -6 -6 -6 -6 -5 -5 -5 -5 -5 -5 -4 -4 -4 -4 --------- Run | Yrd Mat Min Exi Min Mat Fac Low Low Dat Pro Fac Was Fac Low Low Zio Pro Fac Ext Cet Arc Hub Fac Was Fac Arm Machines Accessed 32 | . 1 . 1 . 4 7 . . . . 2 . 5 . 2 . 1 1 3 . . 1 2 . 2 . Terminals 15 | . 1 . . . 3 5 . . . . 1 . 1 . . . 1 . 3 . . . . . . . Fabricators 6 | . . . . . . . . . . . 1 . 2 . . . . 1 . . . . 1 . 1 . Repair Stations 5 | . . . . . . 1 . . . . . . 2 . . . . . . . . . 1 . 1 . Recycling Units 1 | . . . . . . 1 . . . . . . . . . . . . . . . . . . . . Scanalyzers 1 | . . . . . 1 . . . . . . . . . . . . . . . . . . . . . Garrison Access 1 | . . . . . . . . . . . . . . . . . . . . . . 1 . . . . Total Hacks 80 | . 3 . 4 . 11 17 . . . . 5 . 9 . 8 . 1 3 9 . . 1 5 . 4 . Successful 38 | . 1 . 4 . 6 6 . . . . 1 . 6 . 8 . 1 2 1 . . 1 1 . . . Failed 42 | . 2 . . . 5 11 . . . . 4 . 3 . . . . 1 8 . . . 4 . 4 . Catastrophic 8 | . 1 . . . . 1 . . . . 1 . . . . . . . 3 . . . 1 . 1 . Database Lockouts . | . . . . . . . . . . . . . . . . . . . . . . . . . . . Manual 82 | . 3 . . . 5 14 . . . . . . 1 . . . . 7 . 1 . 30 9 . 9 3 Terminals 38 | . 3 . . . 8 14 . . . . 2 . 1 . . . 1 . 9 . . . . . . . Fabricators 12 | . . . . . . . . . . . 3 . 4 . . . . 3 . . . . 1 . 1 . Repair Stations 13 | . . . . . . 2 . . . . . . 4 . . . . . . . . . 4 . 3 . Recycling Units 1 | . . . . . . 1 . . . . . . . . . . . . . . . . . . . . Scanalyzers 3 | . . . . . 3 . . . . . . . . . . . . . . . . . . . . . Garrison Access 1 | . . . . . . . . . . . . . . . . . . . . . . 1 . . . . Terminal Hacks 21 | . 1 . 4 . 4 1 . . . . . . 1 . 8 . 1 . 1 . . . . . . . Record 12 | . . . 4 . . . . . . . . . . . 7 . 1 . . . . . . . . . Part Schematic 1 | . 1 . . . . . . . . . . . . . . . . . . . . . . . . . Open Door 2 | . . . . . . . . . . . . . . . 1 . . . 1 . . . . . . . Branch Access Points 3 | . . . . . 1 1 . . . . . . 1 . . . . . . . . . . . . . Hauler Manifests 1 | . . . . . 1 . . . . . . . . . . . . . . . . . . . . . Registered Components 1 | . . . . . 1 . . . . . . . . . . . . . . . . . . . . . Zone Layout 1 | . . . . . 1 . . . . . . . . . . . . . . . . . . . . . Fabricator Hacks 5 | . . . . . . . . . . . 1 . 2 . . . . 2 . . . . . . . . Load Schematic 3 | . . . . . . . . . . . 1 . 1 . . . . 1 . . . . . . . . Build 2 | . . . . . . . . . . . . . 1 . . . . 1 . . . . . . . . Repair Station Hacks 2 | . . . . . . . . . . . . . 2 . . . . . . . . . . . . . Scan Component 1 | . . . . . . . . . . . . . 1 . . . . . . . . . . . . . Repair 1 | . . . . . . . . . . . . . 1 . . . . . . . . . . . . . Recycling Unit Hacks . | . . . . . . . . . . . . . . . . . . . . . . . . . . . Scanalyzer 1 | . . . . . 1 . . . . . . . . . . . . . . . . . . . . . Retrieve Study 1 | . . . . . 1 . . . . . . . . . . . . . . . . . . . . . Garrison Access Hacks . | . . . . . . . . . . . . . . . . . . . . . . . . . . . Unauthorized Hacks 9 | . . . . . 1 5 . . . . . . 1 . . . . . . . . 1 1 . . . Terminals 4 | . . . . . 1 3 . . . . . . . . . . . . . . . . . . . . Assimilate 1 | . . . . . . 1 . . . . . . . . . . . . . . . . . . . . Botnet 3 | . . . . . 1 2 . . . . . . . . . . . . . . . . . . . . Fabricators . | . . . . . . . . . . . . . . . . . . . . . . . . . . . Repair Stations 3 | . . . . . . 1 . . . . . . 1 . . . . . . . . . 1 . . . Mechanics 1 | . . . . . . 1 . . . . . . . . . . . . . . . . . . . . Patch 2 | . . . . . . . . . . . . . 1 . . . . . . . . . 1 . . . Recycling Units 1 | . . . . . . 1 . . . . . . . . . . . . . . . . . . . . Recyclers 1 | . . . . . . 1 . . . . . . . . . . . . . . . . . . . . Scanalyzers . | . . . . . . . . . . . . . . . . . . . . . . . . . . . Garrison Access 1 | . . . . . . . . . . . . . . . . . . . . . . 1 . . . . Jam 1 | . . . . . . . . . . . . . . . . . . . . . . 1 . . . . Data Cores Recovered . | . . . . . . . . . . . . . . . . . . . . . . . . . . . Used . | . . . . . . . . . . . . . . . . . . . . . . . . . . . Hacking Detections 19 | . 1 . . . 2 6 . . . . 2 . 2 . . . . 1 2 . . . 1 . 2 . Full Trace Events 4 | . 1 . . . . . . . . . 1 . 1 . . . . 1 . . . . . . . . Feedback Events 1 | . 1 . . . . . . . . . . . . . . . . . . . . . . . . . Corruption 1 | . 1 . . . . . . . . . . . . . . . . . . . . . . . . . Feedback Blocked . | . . . . . . . . . . . . . . . . . . . . . . . . . . . Robot Schematics Acquired 4 | . . . . . . . . . . . . . . . . . . . . . . 4 . . . . Robots Built . | . . . . . . . . . . . . . . . . . . . . . . . . . . . Authchips . | . . . . . . . . . . . . . . . . . . . . . . . . . . . Time . | . . . . . . . . . . . . . . . . . . . . . . . . . . . Total Robot Build Rating . | . . . . . . . . . . . . . . . . . . . . . . . . . . . Part Schematics Acquired 1 | . 1 . . . . . . . . . . . . . . . . . . . . . . . . . Parts Built 2 | . . . . . . . . . . . . . 1 . . . . 1 . . . . . . . . Authchips . | . . . . . . . . . . . . . . . . . . . . . . . . . . . Time 76 | . . . . . . . . . . . . . 25 . . . . 51 . . . . . . . . Total Part Build Rating 2 | . . . . . . . . . . . . . 1 . . . . 1 . . . . . . . . Part Studies Acquired 1 | . . . . . 1 . . . . . . . . . . . . . . . . . . . . . Parts Repaired 1 | . . . . . . . . . . . . . 1 . . . . . . . . . . . . . Time 124 | . . . . . . . . . . . . . 124 . . . . . . . . . . . . . Parts Recycled . | . . . . . . . . . . . . . . . . . . . . . . . . . . . Recycled Matter . | . . . . . . . . . . . . . . . . . . . . . . . . . . . Retrieved Matter . | . . . . . . . . . . . . . . . . . . . . . . . . . . . Retrieved Components . | . . . . . . . . . . . . . . . . . . . . . . . . . . . Parts Scanalyzed . | . . . . . . . . . . . . . . . . . . . . . . . . . . . Part Schematics Acquired . | . . . . . . . . . . . . . . . . . . . . . . . . . . . Parts Damaged . | . . . . . . . . . . . . . . . . . . . . . . . . . . . Bothacking | -11 -10 -10 -10 -9 -8 -7 -7 -7 -7 -6 -6 -6 -6 -6 -6 -6 -5 -5 -5 -5 -5 -5 -4 -4 -4 -4 ------------ Run | Yrd Mat Min Exi Min Mat Fac Low Low Dat Pro Fac Was Fac Low Low Zio Pro Fac Ext Cet Arc Hub Fac Was Fac Arm Used RIF Installer . | . . . . . . . . . . . . . . . . . . . . . . . . . . . Robots Hacked 2 | . . . . . . . . . . . 1 . . . . . . . 1 . . . . . . . Non-combat 1 | . . . . . . . . . . . 1 . . . . . . . . . . . . . . . Combat 1 | . . . . . . . . . . . . . . . . . . . 1 . . . . . . . Robot Hacks Applied 2 | . . . . . . . . . . . 1 . . . . . . . 1 . . . . . . . parse_system 1 | . . . . . . . . . . . . . . . . . . . 1 . . . . . . . find_chute 1 | . . . . . . . . . . . 1 . . . . . . . . . . . . . . . Relay Couplers Released 3 | . . . . . . 3 . . . . . . . . . . . . . . . . . . . . Machine Destruction 3 | . . . . . . 3 . . . . . . . . . . . . . . . . . . . . Fabnet Peak Effective % . | . . . . . . . . . . . . . . . . . . . . . . . . . . . Robots Rewired 27 | . . . . . . . . . . . . . . 2 . . . . 25 . . . . . . . Allies Hacked 1 | . . . . . . . . . . . . . . . . . . . . . . . . . . 1 Hacks Repelled . | . . . . . . . . . . . . . . . . . . . . . . . . . . . Allies | -11 -10 -10 -10 -9 -8 -7 -7 -7 -7 -6 -6 -6 -6 -6 -6 -6 -5 -5 -5 -5 -5 -5 -4 -4 -4 -4 -------- Run | Yrd Mat Min Exi Min Mat Fac Low Low Dat Pro Fac Was Fac Low Low Zio Pro Fac Ext Cet Arc Hub Fac Was Fac Arm Total Allies 60 | . . . . . . . . . . . . . . 2 . 6 . 7 30 5 . 5 1 . . 4 Largest Group 26 | . . . . . . . . . . . . . . 2 2 6 6 8 26 6 6 10 1 . . 4 Highest-Rated Group 955 | . . . . . . . . . . . . . . 62 62 197 197 390 955 632 616 860 29 . . 156 Highest-Rated Ally 159 | . . . . . . . . . . . . . . 31 31 39 39 70 159 159 136 96 29 . . 39 Zionite Dispatches 8 | . . . . . . . . . . . . . . . . . . 3 . . . 3 1 . . 1 Heavy 1 | . . . . . . . . . . . . . . . . . . . . . . 1 . . . . Light 3 | . . . . . . . . . . . . . . . . . . 2 . . . 1 . . . . Recon 1 | . . . . . . . . . . . . . . . . . . . . . . 1 . . . . Fire 1 | . . . . . . . . . . . . . . . . . . . . . . . . . . 1 Melee Resupply 1 | . . . . . . . . . . . . . . . . . . . . . . . 1 . . . Infowar Resupply 1 | . . . . . . . . . . . . . . . . . . 1 . . . . . . . . Total Orders 21 | . . . . . . . . . . . . . . . . . . 1 1 2 2 3 2 10 . . STAY 2 | . . . . . . . . . . . . . . . . . . . . 1 . . 1 . . . FOLLOW 1 | . . . . . . . . . . . . . . . . . . . . 1 . . . . . . DROP 2 | . . . . . . . . . . . . . . . . . . 1 . . . . 1 . . . COLLECT 1 | . . . . . . . . . . . . . . . . . . . 1 . . . . . . . EXPLORE 7 | . . . . . . . . . . . . . . . . . . . . . . 3 . 4 . . RETURN 8 | . . . . . . . . . . . . . . . . . . . . . 2 . . 6 . . Ally Attacks 413 | . . . . . . . . . . . . . . 5 14 . 31 38 181 18 16 110 . . . . Total Damage 11523 | . . . . . . . . . . . . . . 82 233 . 733 1327 3956 1230 687 3275 . . . . Kills 64 | . . . . . . . . . . . . . . 1 1 . 4 12 24 6 4 12 . . . . Allies Corrupted 8 | . . . . . . . . . . . . . . . . . . . 1 . . 5 . . . 2 Allies Melted 1 | . . . . . . . . . . . . . . . 1 . . . . . . . . . . . Intel | -11 -10 -10 -10 -9 -8 -7 -7 -7 -7 -6 -6 -6 -6 -6 -6 -6 -5 -5 -5 -5 -5 -5 -4 -4 -4 -4 ------- Run | Yrd Mat Min Exi Min Mat Fac Low Low Dat Pro Fac Was Fac Low Low Zio Pro Fac Ext Cet Arc Hub Fac Was Fac Arm Active Infowar (turns) 7201 | . . . . . 1 1159 955 717 217 632 517 906 857 . . . . . 31 . 77 14 449 15 512 142 Optics 9 | . . . . . . . . . . . 9 . . . . . . . . . . . . . . . Sensors 4489 | . . . . . . 862 859 717 217 631 48 358 . . . . . . . . . . 394 15 304 84 IFF 138 | . . . . . . . . . . . . . 138 . . . . . . . . . . . . . Terrain 31 | . . . . . . . . . . . . . . . . . . . 31 . . . . . . . Structural 631 | . . . . . . 518 96 . . 1 . . . . . . . . . . . . . . 11 5 Seismic 244 | . . . . . 1 243 . . . . . . . . . . . . . . . . . . . . T.N.C. 47 | . . . . . . 47 . . . . . . . . . . . . . . . . . . . . Jamming 2643 | . . . . . . . . . . . 468 548 719 . . . . . . . 77 14 246 8 510 53 Robot Analysis Total 154 | . . . . . . . . . 154 . . . . . . . . . . . . . . . . . Derelict Logs Recovered 9 | . . 1 . . . . 1 . . 1 . . . 3 1 . 2 . . . . . . . . . Drone Launches 10 | . . . . . . . . . . . . . . . . . . . . . 2 3 . 5 . . Drone Recoveries 8 | . . . . . . . . . . . . . . . . . . . . . 2 1 . 5 . . Zionite Intel Received 5 | . . . . . . . . . . . . . . . . . . . . . . 4 . . 1 . Emergency Access 1 | . . . . . . . . . . . . . . . . . . . . . . 1 . . . . Component Stockpiles 1 | . . . . . . . . . . . . . . . . . . . . . . . . . 1 . Unaware Schematics 1 | . . . . . . . . . . . . . . . . . . . . . . 1 . . . . Unaware Analyses 1 | . . . . . . . . . . . . . . . . . . . . . . 1 . . . . Depthwide Sectors/0 1 | . . . . . . . . . . . . . . . . . . . . . . 1 . . . . Exploration | -11 -10 -10 -10 -9 -8 -7 -7 -7 -7 -6 -6 -6 -6 -6 -6 -6 -5 -5 -5 -5 -5 -5 -4 -4 -4 -4 ------------- Run | Yrd Mat Min Exi Min Mat Fac Low Low Dat Pro Fac Was Fac Low Low Zio Pro Fac Ext Cet Arc Hub Fac Was Fac Arm Turns Passed 28249 | 92 732 1172 215 587 2323 1520 975 1119 418 727 907 906 1219 1724 2002 3182 1191 595 1956 598 1898 519 566 179 634 293 Spaces Moved 12583 | 42 322 677 135 277 1199 797 809 662 135 391 505 450 486 518 615 1289 479 197 651 232 747 223 267 76 271 131 Core 3 | 3 . . . . . . . . . . . . . . . . . . . . . . . . . . Treads 9128 | 39 322 677 135 56 1199 261 . . . . . 388 486 518 615 1289 479 197 651 232 747 223 267 76 271 . Legs 850 | . . . . 221 . 73 . 376 130 40 . . . . . . . . . . . . . . . 10 Wheels 2602 | . . . . . . 463 809 286 5 351 505 62 . . . . . . . . . . . . . 121 Hover . | . . . . . . . . . . . . . . . . . . . . . . . . . . . Flight . | . . . . . . . . . . . . . . . . . . . . . . . . . . . Fastest Speed 50 | 50 160 160 160 160 160 115 100 115 115 115 108 145 160 240 318 238 240 242 242 160 160 160 160 160 160 119 Average Speed 185 | 152 160 160 160 183 161 135 109 163 243 131 134 158 181 267 318 243 240 242 242 174 160 163 162 160 162 155 Slowest Speed 640 | 160 160 160 160 190 165 270 115 200 270 280 145 240 240 318 318 326 325 242 244 242 160 240 320 160 640 470 Overloaded Moves . | . . . . . . . . . . . . . . . . . . . . . . . . . . . Propulsion Burnouts . | . . . . . . . . . . . . . . . . . . . . . . . . . . . Robots Hopped . | . . . . . . . . . . . . . . . . . . . . . . . . . . . Potential Cave-ins 20 | . . . . . . . . . . . 2 . . . . . . . . . . 2 . 15 1 . Cave-ins Triggered 3 | . . . . . . . . . . . . . . . . . . . . . . 2 . 1 . . Exploration Rate (%) 52 | 3 31 98 49 47 47 19 83 70 72 53 10 94 17 71 73 89 65 7 87 66 98 57 5 92 11 14 Regions Visited 26 Branch Regions 16 Pre-discovered Areas 42 | . . . 1 . . . . . 27 . . . . . 2 1 1 . . . . 10 . . . . Known Exits Taken 9 | . . . . . . 1 1 1 1 1 . . 1 1 . . 1 . . . . . . . 1 . Unknown Exits Taken 13 | 1 1 1 1 1 1 . . . . . . . . . 1 1 . 1 1 1 1 1 . . . . Scrap Searched 29 | . . 1 . 1 . . 2 3 . 4 . . . 5 7 3 3 . . . . . . . . . Spaces Dug 90 | . . . . . 3 12 . . . 2 4 . 10 . . . . 3 . . . 13 6 19 10 8 Terrain Destroyed 578 | . 3 . . . 86 72 5 4 41 4 9 2 93 47 9 . 7 29 82 13 . 29 6 19 10 8 Melee 86 | . . . . . 3 12 . . . . 3 . 9 . . . . 3 . . . 13 6 19 10 8 Projectile 145 | . . . . . . . 5 4 . 4 6 2 26 35 9 . 7 10 37 . . . . . . . AOE 347 | . 3 . . . 83 60 . . 41 . . . 58 12 . . . 16 45 13 . 16 . . . . Terrain Rammed . | . . . . . . . . . . . . . . . . . . . . . . . . . . . Walls Destroyed . | . . . . . . . . . . . . . . . . . . . . . . . . . . . Machines Disabled . | . . . . . . . . . . . . . . . . . . . . . . . . . . . Actions | -11 -10 -10 -10 -9 -8 -7 -7 -7 -7 -6 -6 -6 -6 -6 -6 -6 -5 -5 -5 -5 -5 -5 -4 -4 -4 -4 --------- Run | Yrd Mat Min Exi Min Mat Fac Low Low Dat Pro Fac Was Fac Low Low Zio Pro Fac Ext Cet Arc Hub Fac Was Fac Arm Total 16194 | 57 451 726 134 310 1449 1099 887 690 185 565 668 643 711 777 647 1326 503 281 879 405 1443 317 362 104 385 190 Wait 1888 | . 57 16 . 5 59 100 52 9 7 136 43 158 133 142 8 11 4 59 30 97 631 45 38 5 26 17 Move 12558 | 41 321 676 134 276 1198 796 808 661 134 390 505 449 485 517 614 1288 478 196 650 231 746 222 267 74 270 131 Hop . | . . . . . . . . . . . . . . . . . . . . . . . . . . . Pick Up 234 | 3 14 4 . 1 31 24 5 3 2 4 24 7 15 10 7 4 5 3 7 14 18 2 15 1 9 2 Fast Attach 115 | 7 2 . . 1 13 20 3 3 2 5 10 3 2 1 . 9 1 . 6 7 7 1 5 . . 7 Attach 89 | . 1 1 . . 7 18 2 3 8 1 3 . . 2 1 3 . 2 5 6 4 6 7 . 2 7 Detach 15 | . . . . . . 5 1 . . 1 1 . 1 . . . . . . 1 . . 2 . . 3 Swap 219 | . 8 2 . 3 18 22 2 2 5 10 15 5 21 6 2 2 3 5 27 9 7 6 5 3 23 8 Drop 246 | 1 4 4 . 2 40 36 2 4 2 . 32 17 7 6 6 9 5 1 12 20 21 1 3 1 9 1 Fire 371 | 5 41 22 . 22 31 10 12 5 6 18 31 4 35 45 9 . 3 12 51 7 . 1 . . . 1 Melee 346 | . 3 . . . 52 66 . . 19 . 4 . 9 . . . 4 3 52 5 9 27 20 19 41 13 Ram . | . . . . . . . . . . . . . . . . . . . . . . . . . . . Kick 2 | . . . . . . 2 . . . . . . . . . . . . . . . . . . . . Crush 11 | . . 1 . . . . . . . . . . 3 . . . . . 3 . . . . . 4 . Escape Stasis 5 | . . . . . . . . . . . . . . . . . . . 4 . . . . 1 . . Rewire 59 | . . . . . . . . . . . . . . 48 . . . . 8 . . 3 . . . . Trap 8 | . . . . . . . . . . . . . . . . . . . 8 . . . . . . . Miscellaneous 28 | . . . . . . . . . . . . . . . . . . . 16 8 . 3 . . 1 . Route ------- -11/Scrapyard -10/Materials -10/Mines (discovered 4 exits: [*Mat x2] / *Exi / [*Sub]) -10/Exiles -9/Mines -8/Materials (discovered 2 exits: *Fac / Sto) -7/Factory (discovered 3 exits: *Fac / *Low x2) -7/Lower Caves -7/Lower Caves -7/Data Miner -6/Proximity Caves -6/Factory -6/Waste -6/Factory (discovered 2 exits: *Low x2) -6/Lower Caves -6/Lower Caves (discovered 2 exits: *Fac / [*Zio]) -6/Zion -5/Proximity Caves -5/Factory -5/Extension (discovered 2 exits: *Fac / *Cet) -5/Cetus (discovered 2 exits: *Fac / [*Arc]) -5/Archives (discovered 3 exits: *Fac / *Hub x2) -5/Hub_04(d) (discovered 3 exits: *Fac x3) -4/Factory -4/Waste -4/Factory -4/Armory History --------- Turn | Location | Event 3 | -11/Scrapyard | Discovered new exit (range 16) 93 | -11/Scrapyard | Entered Materials 308 | -10/Materials | Build established: Mutant 438 | -10/Materials | Discovered new exit (range 14) 825 | -10/Materials | Entered Mines 934 | -10/Mines | Assembled infested the area 939 | -10/Mines | Assisted by a Guerilla fighting off Assembled 1235 | -10/Mines | Discovered new exit (range 10) 1242 | -10/Mines | Learned Materials emergency access door positions 1402 | -10/Mines | Discovered new exit (range 12) 1572 | -10/Mines | Discovered new exit (range 12) 1630 | -10/Mines | A weapon hastily lodged in a ceiling crevice suddenly fell to the ground 1991 | -10/Mines | Deemed a non-threat by the Exiles lab entrance 1991 | -10/Mines | Discovered new exit (range 5) 1997 | -10/Mines | Entered Exiles 2034 | -10/Exiles | Met 8R-AWN 2065 | -10/Exiles | Met EX-HEX 2125 | -10/Exiles | Met EX-DEC 2137 | -10/Exiles | Learned location of Zion (-6) 2194 | -10/Exiles | Discovered new exit (range 14) 2212 | -10/Exiles | Entered Mines 2268 | -9/Mines | Found a Scrap Suit stashed away for nefarious purposes 2308 | -9/Mines | Found Scrap Suit 2377 | -9/Mines | Found a hidden stash of uninstalled traps 2613 | -9/Mines | Core integrity fell below 50% 2793 | -9/Mines | Discovered new exit (range 3) 2799 | -9/Mines | Entered Materials 2799 | -8/Materials | Evolved 4 slots: Propulsion x2, Utility x1, Weapon x1 3681 | -8/Materials | Discovered new exit (range 12) 3924 | -8/Materials | Build established: Scavenger-Mutant 4227 | -8/Materials | Identified exit to Storage 5030 | -8/Materials | Build established: Scavenger-Gladiator 5122 | -8/Materials | Entered Factory 5122 | -7/Factory | Evolved 2 slots: Utility x1, Weapon x1 5204 | -7/Factory | Identified exit to Lower Caves 5364 | -7/Factory | System corruption reached 10% 5394 | -7/Factory | Lost 4 parts (1n2u1w) 5406 | -7/Factory | Build established: Mutant 5743 | -7/Factory | Discovered new exit (range 7) 5809 | -7/Factory | Lost 3 parts (1p1n1w) 6562 | -7/Factory | Cargo convoy interrupted 6605 | -7/Factory | Destroyed 8 combat bots 6608 | -7/Factory | Found Prototype Processor 6608 | -7/Factory | Identified Exp. Targeting Computer 6619 | -7/Factory | Found Prototype Protection 6625 | -7/Factory | System corruption reached 30% 6631 | -7/Factory | Found Corrupted Prototype Launcher 6642 | -7/Factory | Entered Lower Caves 6673 | -7/Lower Caves | Lost 11 parts (4n2u5w) 6899 | -7/Lower Caves | Learned Factory stockpile data 7606 | -7/Lower Caves | Discovered new exit (range 10) 7616 | -7/Lower Caves | Identified exit to Lower Caves 7617 | -7/Lower Caves | Entered another Lower Caves area 7774 | -7/Lower Caves | Entered a destroyed Warlord outpost 8701 | -7/Lower Caves | Discovered new exit (range 6) 8729 | -7/Lower Caves | Identified exit to Data Miner 8736 | -7/Lower Caves | Entered Data Miner 8736 | -7/Data Miner | Discovered new exit (range 6) 8774 | -7/Data Miner | Met Data Miner 8806 | -7/Data Miner | Interfaced with the Data Conduit 8806 | -7/Data Miner | Identified Scatter Rocket Array 8825 | -7/Data Miner | Core integrity fell below 50% 8931 | -7/Data Miner | Lost 9 parts (2p3n1u3w) 9151 | -7/Data Miner | Identified exit to Proximity Caves 9154 | -7/Data Miner | Entered Proximity Caves 9160 | -6/Proximity Caves | Identified exit to Factory 9258 | -6/Proximity Caves | Core integrity fell below 20% 9298 | -6/Proximity Caves | Lost 3 parts (1p1n1w) 9723 | -6/Proximity Caves | Attracted the attention of an 0b10 checkpoint 9881 | -6/Proximity Caves | Entered Factory 9881 | -6/Factory | Evolved 2 slots: Power x1, Utility x1 9883 | -6/Factory | Loaded intel: 310 machine locations 9931 | -6/Factory | Identified Active Cooling Armor 10637 | -6/Factory | Discovered new exit (range 3) 10643 | -6/Factory | Identified exit to Factory 10721 | -6/Factory | Build established: Pyromaniac-Gunner 10788 | -6/Factory | Sucked down chute 10788 | -6/Factory | Entered Waste 10788 | -6/Waste | The area was eerily silent 11096 | -6/Waste | Build established: Pyromaniac-Tank 11393 | -6/Waste | Discovered new exit (range 16) 11694 | -6/Waste | Entered Factory 11695 | -6/Factory | Loaded intel: 271 machine locations 11950 | -6/Factory | Identified exit to Lower Caves 11990 | -6/Factory | Build established: Scavenger-Tank 12300 | -6/Factory | Repaired Broken Molecular Scythe 12443 | -6/Factory | Found Scatter Rocket Array 12549 | -6/Factory | Fabricated Cargo Storage Unit (x1) 12632 | -6/Factory | Destroyed 8 combat bots 12836 | -6/Factory | Build established: Hauler-Tank 12913 | -6/Factory | Entered Lower Caves 12921 | -6/Lower Caves | Learned Factory terminal intel 13281 | -6/Lower Caves | Learned Factory stockpile data 13710 | -6/Lower Caves | Identified exit to Lower Caves 13794 | -6/Lower Caves | Attacked by a faux Warlord 14637 | -6/Lower Caves | Entered another Lower Caves area 14637 | -6/Lower Caves | Accompanied by 2 allies 14701 | -6/Lower Caves | Discovered exit to Factory (range 13) 16124 | -6/Lower Caves | Learned Factory security intel 16160 | -6/Lower Caves | Entered an active Warlord outpost 16187 | -6/Lower Caves | Learned Extension garrison access intel 16187 | -6/Lower Caves | Learned Armory terminal intel 16187 | -6/Lower Caves | Learned Factory security intel 16187 | -6/Lower Caves | Learned Armory emergency access door positions 16187 | -6/Lower Caves | Learned Factory emergency access door positions 16505 | -6/Lower Caves | Discovered new exit (range 8) 16639 | -6/Lower Caves | Entered Zion 16805 | -6/Zion | System corruption cleaned by Quarantine Array 16836 | -6/Zion | System corruption cleaned by Quarantine Array 16931 | -6/Zion | Build established: Hauler-Mutant 17090 | -6/Zion | Discovered new exit (range 15) 17212 | -6/Zion | Gained Derelict followers 17305 | -6/Zion | Build established: Hauler-Tank 17681 | -6/Zion | Found Prototype Device 17681 | -6/Zion | Identified Mobile Refinery Mk. CCLXVII 18151 | -6/Zion | Found CR-A16's Pointy Stick 19321 | -6/Zion | Met Imprinter 19360 | -6/Zion | Imprinted 19363 | -6/Zion | Declared Zion's savior 19821 | -6/Zion | Entered Proximity Caves 19821 | -5/Proximity Caves | Accompanied by 6 allies 19821 | -5/Proximity Caves | Spotted B-75 Beast 19849 | -5/Proximity Caves | Allies destroyed B-75 Beast 19872 | -5/Proximity Caves | System corruption reached 10% 20983 | -5/Proximity Caves | Discovered exit to Factory (range 8) 21012 | -5/Proximity Caves | Entered Factory 21012 | -5/Factory | Accompanied by 5 allies 21012 | -5/Factory | Evolved 2 slots: Propulsion x2 21016 | -5/Factory | Loaded intel: 276 machine locations 21017 | -5/Factory | Loaded intel: 28 terminal locations 21044 | -5/Factory | Zion Light squad teleported in 21145 | -5/Factory | Fabricated Cargo Storage Unit? 21191 | -5/Factory | Lost 6 allies 21312 | -5/Factory | First assault squad dispatched 21328 | -5/Factory | Zion Light squad teleported in 21438 | -5/Factory | Discovered new exit (range 13) 21446 | -5/Factory | Zion Infowar Resupply teleported in 21607 | -5/Factory | Entered Extension 21607 | -5/Extension | Accompanied by 3 allies 21608 | -5/Extension | Loaded intel: 18 machine locations 21791 | -5/Extension | Rescued A7 21980 | -5/Extension | Rescued a captive Derelict 21981 | -5/Extension | Rescued a captive Derelict 22318 | -5/Extension | Build established: Commander-Tank 22776 | -5/Extension | Spotted B-75 Beast 22777 | -5/Extension | Allies destroyed B-75 Beast 22857 | -5/Extension | Rescued a captive Derelict 22858 | -5/Extension | Rescued a captive Derelict 22972 | -5/Extension | Lost 4 allies 23158 | -5/Extension | Terminal network hard line cut 23407 | -5/Extension | First assault squad dispatched 23437 | -5/Extension | Lost 7 allies 23459 | -5/Extension | P-70 Sage assimilated allied FM-OQD(b) 23493 | -5/Extension | Destroyed 12 combat bots 23499 | -5/Extension | Lost 3 parts (1p1u1w) 23499 | -5/Extension | Lost 16 allies 23507 | -5/Extension | Discovered new exit (range 10) 23509 | -5/Extension | Discovered new exit (range 6) 23563 | -5/Extension | Entered Cetus 23563 | -5/Cetus | Accompanied by 2 allies (A7) 23564 | -5/Cetus | Loaded intel: 24 machine locations 23568 | -5/Cetus | Acquired a Cetus Manufacturing Module code from A7 23594 | -5/Cetus | Spotted Cetus Guard 23594 | -5/Cetus | Spotted Cetus Guard 23603 | -5/Cetus | Allies destroyed Cetus Guard 23603 | -5/Cetus | Spotted Cetus Guard 23604 | -5/Cetus | Destroyed Cetus Guard 23604 | -5/Cetus | Spotted Cetus Guard 23606 | -5/Cetus | Destroyed Cetus Guard 23609 | -5/Cetus | Destroyed Cetus Guard 23707 | -5/Cetus | System corruption reached 10% 23759 | -5/Cetus | Started Cetus Manufacturing Module 23784 | -5/Cetus | Manufactured an Enhanced Grunt 23789 | -5/Cetus | Escorted A7 to Cetus Mainframe 23809 | -5/Cetus | Manufactured an Enhanced Grunt 23817 | -5/Cetus | Discovered new exit (range 16) 23834 | -5/Cetus | Manufactured an Enhanced Grunt 23859 | -5/Cetus | Manufactured an Enhanced Grunt 23884 | -5/Cetus | Manufactured an Enhanced Grunt 23969 | -5/Cetus | Build established: Hauler-Mutant 23998 | -5/Cetus | Spotted Cetus Guard 23998 | -5/Cetus | Spotted Cetus Guard 24001 | -5/Cetus | Spotted Cetus Guard 24001 | -5/Cetus | Spotted Cetus Guard 24004 | -5/Cetus | Allies destroyed Cetus Guard 24006 | -5/Cetus | Attached CPS modules to Cetus Guard 24010 | -5/Cetus | Allies destroyed Cetus Guard 24010 | -5/Cetus | Attached CPS modules to Cetus Guard 24016 | -5/Cetus | Discovered new exit (range 16) 24033 | -5/Cetus | Allies destroyed Cetus Guard 24040 | -5/Cetus | Allies destroyed Cetus Guard 24041 | -5/Cetus | Scared off Revision 17 24161 | -5/Cetus | Entered Archives 24161 | -5/Archives | Accompanied by 6 allies (A7) 24162 | -5/Archives | Loaded intel: 8 machine locations 24166 | -5/Archives | Received a hacking code to weaken MAIN.C 24271 | -5/Archives | Discovered new exit (range 16) 24365 | -5/Archives | Discovered new exit (range 16) 24511 | -5/Archives | Discovered new exit (range 16) 24543 | -5/Archives | Build established: Scavenger-Mutant 24930 | -5/Archives | Build established: Hauler-Mutant 26059 | -5/Archives | Entered Hub_04(d) 26059 | -5/Hub_04(d) | Accompanied by 5 allies 26060 | -5/Hub_04(d) | Loaded intel: 75 machine locations 26068 | -5/Hub_04(d) | Discovered new exit (range 25) 26072 | -5/Hub_04(d) | Zion Light squad teleported in 26097 | -5/Hub_04(d) | Retrieved Zion intel report: Emergency Access 26098 | -5/Hub_04(d) | Zion Heavy squad teleported in 26172 | -5/Hub_04(d) | Zion Recon squad teleported in 26207 | -5/Hub_04(d) | Garrison activated, responded to threat 26211 | -5/Hub_04(d) | Retrieved Zion intel report: Depthwide Sectors/-5 26249 | -5/Hub_04(d) | Retrieved Zion intel report: Unaware Analyses 26257 | -5/Hub_04(d) | Spotted B-75 Beast 26258 | -5/Hub_04(d) | Retrieved Zion intel report: Unaware Schematics 26267 | -5/Hub_04(d) | Allies destroyed B-75 Beast 26396 | -5/Hub_04(d) | Network Hub disabled 26419 | -5/Hub_04(d) | Build established: Hauler-Gladiator 26420 | -5/Hub_04(d) | Spotted Lightning 26421 | -5/Hub_04(d) | Spotted Lightning 26437 | -5/Hub_04(d) | Discovered new exit (range 56) 26439 | -5/Hub_04(d) | Spotted Lightning 26454 | -5/Hub_04(d) | Spotted Lightning 26467 | -5/Hub_04(d) | Spotted Lightning 26467 | -5/Hub_04(d) | Destroyed Lightning 26467 | -5/Hub_04(d) | Spotted Lightning 26467 | -5/Hub_04(d) | Destroyed Lightning 26470 | -5/Hub_04(d) | Lost 9 allies 26497 | -5/Hub_04(d) | Crushed by falling debris 26529 | -5/Hub_04(d) | Crushed by falling debris 26561 | -5/Hub_04(d) | Discovered new exit (range 5) 26568 | -5/Hub_04(d) | Core integrity fell below 50% 26569 | -5/Hub_04(d) | System corruption reached 30% 26578 | -5/Hub_04(d) | Entered Factory 26578 | -4/Factory | Evolved 2 slots: Propulsion x2 26580 | -4/Factory | Loaded intel: 297 machine locations 26602 | -4/Factory | Lost 6 parts (3n3u) 26717 | -4/Factory | Zion Melee Resupply teleported in 26730 | -4/Factory | Found Exp. Melee Analysis Suite 26903 | -4/Factory | Build established: Hauler-Mutant 27144 | -4/Factory | Manually triggered Chute Trap 27144 | -4/Factory | Sucked down chute 27144 | -4/Factory | Entered Waste 27159 | -4/Waste | EMP discharged 27185 | -4/Waste | Spotted C-40 Crusher 27192 | -4/Waste | Spotted C-40 Crusher 27203 | -4/Waste | Spotted C-40 Crusher 27259 | -4/Waste | EMP discharged 27277 | -4/Waste | Crushed by falling debris 27296 | -4/Waste | Discovered new exit (range 15) 27320 | -4/Waste | Identified exit to Factory 27323 | -4/Waste | Entered Factory 27324 | -4/Factory | Loaded intel: 249 machine locations 27467 | -4/Factory | System corruption reached 10% 27552 | -4/Factory | Retrieved Zion intel report: Component Stockpiles 27927 | -4/Factory | Discovered new exit (range 12) 27955 | -4/Factory | Identified exit to Armory 27957 | -4/Factory | Entered Armory 27959 | -4/Armory | Loaded intel: 74 machine locations 27960 | -4/Armory | Loaded intel: 14 terminal locations 27980 | -4/Armory | Zion Fire squad teleported in 27986 | -4/Armory | Lost 9 parts (2p4n3w) 28195 | -4/Armory | Energy Cycler disabled 28221 | -4/Armory | Lost 3 allies 28249 | -4/Armory | Core integrity fell below 50% 28250 | -4/Armory | Self-destructed Last Messages --------------- 28230_ NODQDXT T|8DGAC%U 0KDJU>DXG1I6G=YNG 28230_ W-44 Eye distress signal jammed. 28232_ P-70 Sage resets P-70 Sage, system corruption cleaned. 28233_ W-44 Eye distress signal jammed. 28234_ Shock Maul destroyed. 28234_ W-44 Eye distress signal jammed. 28235_ Terminal disabled. 28236_ W-44 Eye distress signal jammed. 28237_ Critical hit (Burn: +50). 28238_ W-44 Eye distress signal jammed. 28239_ Arm. Huge Wheel destroyed. 28240_ W-44 Eye distress signal jammed. 28241_ P-70 Sage resets L-61 Swordsman, system corruption cleaned. 28241_ W-44 Eye distress signal jammed. 28242_ Centrium Leg severed. 28242_ Acquired Centrium Leg. 28242_ W-44 Eye distress signal jammed. 28248_ Centrium Wheel severed. Map ----- +----------------------------------------------------+ | ????????????????????????????????""""""???????????? | | ?????????????????????????????????????????????????? | | ?????????????????????????????????????????????????? | | """"??????????????"""????????????????????????????? | | ???"??????????????"""????????????????????????????? | | ?"""?????????"""??"""????????????????????????????? | | ?"""?????????"Y???"""????????????????????????????? | | ???"?????????"""??"""????????????????????????????? | | """"?????????????????????????????????????????????? | | ???????????????????+????????????????????????????## | | ????????????????????????????????????????????? | | ????????????????"""""??? ??###+#????????????? | | ????????????????"""""??# ??? ?????????????????# | | ????????????????"""""??# ?? #?????????????????? | | ???????????????????????# """ #?????????????????? | | ????????""??????"""""??# """ #?????????????????? | | ????????T???????"""""??# """ #?????????????????# | | ????????????????"""""??# """ #?????????????????# | | ???????????????????????# """ #????#####????????? | | ????????????????????#+## """ #????# #????##### | | ????????????????????# """ #????# #????# | | ????????????????????# ###### ###### | | ????????????????????# xp | | ????????????????????# "x" | | ??????????????????######p#l################### | | "?????????????????# @ #?????????????# | | "?????????????????# """"""" =#?????????????##### | | "?????????????????# """"""" #?????????????????? | | ??????????????????# """"""" [#?????????????????? | | ???????????????????? #?????????????????? | | """"????????????????###"" """###?????????????????? | | """""?????????????????#""F"""#???????????????????? | | ????????????????????????"""""????????????????????? | | ?????????????????????????????????????????????????? | | ?????????????????????????????????????????????????? | | ?????????????????????????????????????????????????? | | ?????????????????????????????????????????????????? | | ?????????????????????????????????????????????????? | | ?????????????????????????????????????????????????? | | ?????????????????????????????????????????????????? | | ?????????????????????????????????????????????????? | | | | | | | | | | | | | | | | | | | +----------------------------------------------------+ Best States ------------- Heat Dissipation 100 Energy Generation 45 Energy Capacity 600 Matter Stores 300 Matter Capacity 300 Sight Range 22 Robot Scan Range 16 Terrain Scan Range 16 Terrain Scan Density 10 Jamming Range 14 EM Shielding 3 Armor Coverage 1800 Resistance: KI 25 Resistance: TH 25 Resistance: EM 20 Power Shielding 66 Evasion (%) 55 Targeting Accuracy 12 Melee Accuracy 6 Recoil Reduction 8 Offensive Hacking 10 Defensive Hacking 10 Item Schematics ----------------- Cargo Storage Unit | -10/Materials | Hacked Robot Schematics ------------------ R-10 Processor | -5/Hub_04(d) | Z-intel S-27 Virus | -5/Hub_04(d) | Z-intel T-07 Excavator | -5/Hub_04(d) | Z-intel R-06 Scavenger | -5/Hub_04(d) | Z-intel Fabricated ------------ Cargo Storage Unit | x1 | -6/Factory Cargo Storage Unit | x1 | -5/Factory Repaired ---------- Molecular Scythe | 17% | -6/Factory | Broken Studied --------- Axe | -8/Materials | Hacked Alien Tech Used ----------------- None Achievements -------------- Hot Stuff Challenges ------------ None Game ------ Seed TowerMiniScrap Manual? 0 Play Time 02:53:57 Cumulative 499.3 hours Start 2026.07.27 @ 14:02:35 End 2026.07.27 @ 17:46:44 Sessions 1 Manual Loads 0 Difficulty Rogue Special Mode None Game No. 444 Rogue 444 Adventurer 0 Explorer 0 Win Type - Total 13 Types 7/0/3/1/0/0/0/1/0/1 Lore% 63 Gallery% 70 Achievement% 67 Wizard Run 0 Options --------- Layout 1 ASCII 0 Keyboard 0 Movement Mouse Keybinds 0 Fullscreen 2 Font 24/Cog Map View 50x35 Zoom Use 20% Tactical HUD 1 Map Filters NONE Filters NONE Steam 1 RUN: 64e4d479-da21-4883-8340-88c150cbdb3d